[Event "Titled Tuesday Blitz February 15 Early 2022"]
[White "Mirzoev, Azer"]
[Black "Vokhidov, Shamsiddin"]
[WhiteFideId "13400304"]
[BlackFideId "14204223"]
[WhiteElo "2525"]
[BlackElo "2611"]
[Result "0-1"]
[Round "07"]
[TimeControl "180+1"]
[Date "2022.02.15"]
[WhiteClock "0:00:17"]
[BlackClock "0:00:22"]

1. d4 {[%clk 0:02:58]}  Nf6 {[%clk 0:02:59]} 2. Nf3 {[%clk 0:02:57]}  d5 {[%clk 0:03:00]} 3. Bf4 {[%clk 0:02:56]}  c5 {[%clk 0:03:00]} 4. e3 {[%clk 0:02:55]}  Nc6 {[%clk 0:03:00]} 5. c3 {[%clk 0:02:53]}  Qb6 {[%clk 0:03:00]} 6. Qc2 {[%clk 0:02:53]}  g6 {[%clk 0:02:59]} 7. Nbd2 {[%clk 0:02:52]}  Bg7 {[%clk 0:02:59]} 8. Be2 {[%clk 0:02:49]}  O-O {[%clk 0:02:59]} 9. O-O {[%clk 0:02:48]}  Bf5 {[%clk 0:02:59]} 10. Qb3 {[%clk 0:02:47]}  c4 {[%clk 0:02:57]} 11. Qxb6 {[%clk 0:02:46]}  axb6 {[%clk 0:02:57]} 12. Ne5 {[%clk 0:02:44]}  b5 {[%clk 0:02:57]} 13. a3 {[%clk 0:02:44]}  Rfe8 {[%clk 0:02:49]} 14. h3 {[%clk 0:02:41]}  Nd7 {[%clk 0:02:41]} 15. Nxd7 {[%clk 0:02:40]}  Bxd7 {[%clk 0:02:42]} 16. Nf3 {[%clk 0:02:35]}  f6 {[%clk 0:02:33]} 17. Bh2 {[%clk 0:02:31]}  Kf7 {[%clk 0:02:19]} 18. Rad1 {[%clk 0:02:30]}  Red8 {[%clk 0:02:03]} 19. Rfe1 {[%clk 0:02:29]}  Bf5 {[%clk 0:02:01]} 20. g4 {[%clk 0:02:27]}  Bc8 {[%clk 0:01:59]} 21. Bf1 {[%clk 0:02:17]}  h5 {[%clk 0:01:54]} 22. gxh5 {[%clk 0:02:14]}  gxh5 {[%clk 0:01:55]} 23. Bg2 {[%clk 0:02:14]}  Bh6 {[%clk 0:01:46]} 24. e4 {[%clk 0:02:10]}  dxe4 {[%clk 0:01:35]} 25. Rxe4 {[%clk 0:02:09]}  Bf5 {[%clk 0:01:36]} 26. Ree1 {[%clk 0:01:58]}  Rg8 {[%clk 0:01:24]} 27. Kh1 {[%clk 0:01:57]}  Bc2 {[%clk 0:01:13]} 28. Ra1 {[%clk 0:01:56]}  Na5 {[%clk 0:01:10]} 29. Rg1 {[%clk 0:01:17]}  Rxg2 {[%clk 0:00:46]} 30. Rxg2 {[%clk 0:01:16]}  Be4 {[%clk 0:00:47]} 31. Nh4 {[%clk 0:01:14]}  Bg5 {[%clk 0:00:41]} 32. f3 {[%clk 0:01:14]}  Bd5 {[%clk 0:00:41]} 33. Nf5 {[%clk 0:00:55]}  Bxf3 {[%clk 0:00:41]} 34. Re1 {[%clk 0:00:54]}  Nc6 {[%clk 0:00:37]} 35. Kg1 {[%clk 0:00:51]}  Bxg2 {[%clk 0:00:36]} 36. Kxg2 {[%clk 0:00:52]}  Rd8 {[%clk 0:00:35]} 37. h4 {[%clk 0:00:47]}  Bd2 {[%clk 0:00:32]} 38. Re2 {[%clk 0:00:46]}  Bc1 {[%clk 0:00:31]} 39. Rc2 {[%clk 0:00:44]}  Rd5 {[%clk 0:00:27]} 40. Nxe7 {[%clk 0:00:39]}  Nxe7 {[%clk 0:00:28]} 41. Rxc1 {[%clk 0:00:39]}  Nf5 {[%clk 0:00:28]} 42. Kh3 {[%clk 0:00:36]}  Rd8 {[%clk 0:00:26]} 43. Rf1 {[%clk 0:00:35]}  Ke6 {[%clk 0:00:24]} 44. Bf4 {[%clk 0:00:31]}  Rg8 {[%clk 0:00:23]} 45. Re1+ {[%clk 0:00:30]}  Kd5 {[%clk 0:00:22]} 46. Re8 {[%clk 0:00:17]}  Rxe8 {[%clk 0:00:22]} 0-1


[Site "https://www.chess.com"]

[Event "Titled Tuesday Blitz February 15 Early 2022"]
[White "Mischuk, Dmitry"]
[Black "Nguyen Hong Nhung"]
[WhiteFideId "14118734"]
[BlackFideId "12412201"]
[WhiteElo "2256"]
[BlackElo "1661"]
[Result "0-1"]
[Round "07"]
[TimeControl "180+1"]
[Date "2022.02.15"]
[WhiteClock "0:00:03"]
[BlackClock "0:01:05"]

1. e4 {[%clk 0:02:58]}  c5 {[%clk 0:03:00]} 2. d4 {[%clk 0:02:58]}  cxd4 {[%clk 0:03:00]} 3. Nf3 {[%clk 0:02:58]}  Nf6 {[%clk 0:03:00]} 4. e5 {[%clk 0:02:46]}  Nd5 {[%clk 0:02:59]} 5. Nxd4 {[%clk 0:02:43]}  Nc6 {[%clk 0:02:52]} 6. f4 {[%clk 0:02:38]}  d6 {[%clk 0:02:41]} 7. Nxc6 {[%clk 0:02:02]}  bxc6 {[%clk 0:02:42]} 8. c4 {[%clk 0:01:59]}  Nc7 {[%clk 0:02:36]} 9. Qf3 {[%clk 0:01:37]}  Bb7 {[%clk 0:02:30]} 10. Nc3 {[%clk 0:01:31]}  g6 {[%clk 0:02:23]} 11. Be3 {[%clk 0:01:19]}  Bg7 {[%clk 0:02:14]} 12. O-O-O {[%clk 0:01:18]}  O-O {[%clk 0:02:12]} 13. h4 {[%clk 0:01:16]}  Qc8 {[%clk 0:01:33]} 14. exd6 {[%clk 0:00:14]}  exd6 {[%clk 0:01:33]} 15. Rxd6 {[%clk 0:00:14]}  Rd8 {[%clk 0:01:22]} 16. Rxd8+ {[%clk 0:00:13]}  Qxd8 {[%clk 0:01:23]} 17. Be2 {[%clk 0:00:13]}  Rb8 {[%clk 0:01:18]} 18. h5 {[%clk 0:00:09]}  Bxc3 {[%clk 0:01:12]} 19. bxc3 {[%clk 0:00:09]}  c5 {[%clk 0:01:10]} 20. Qf2 {[%clk 0:00:07]}  Be4 {[%clk 0:01:06]} 21. Rd1 {[%clk 0:00:03]}  Rb1# {[%clk 0:01:05]} 0-1


[Site "https://www.chess.com"]

[Event "Titled Tuesday Blitz February 15 Early 2022"]
[White "Molina, Roberto Junio Brito"]
[Black "Balaji, Aaravamudhan"]
[WhiteFideId "2109450"]
[BlackFideId "436224"]
[WhiteElo "2785"]
[BlackElo "2611"]
[Result "1-0"]
[Round "07"]
[TimeControl "180+1"]
[Date "2022.02.15"]
[WhiteClock "0:00:08"]
[BlackClock "0:00:07"]

1. d4 {[%clk 0:03:00]}  b6 {[%clk 0:03:00]} 2. e4 {[%clk 0:02:58]}  Bb7 {[%clk 0:03:01]} 3. Bd3 {[%clk 0:02:57]}  e6 {[%clk 0:03:02]} 4. Nf3 {[%clk 0:02:57]}  d5 {[%clk 0:03:03]} 5. e5 {[%clk 0:02:53]}  c5 {[%clk 0:03:03]} 6. c3 {[%clk 0:02:53]}  Qd7 {[%clk 0:03:02]} 7. O-O {[%clk 0:02:53]}  Ne7 {[%clk 0:03:01]} 8. Re1 {[%clk 0:02:52]}  Ng6 {[%clk 0:03:02]} 9. h4 {[%clk 0:02:51]}  Be7 {[%clk 0:02:57]} 10. h5 {[%clk 0:02:51]}  Nf8 {[%clk 0:02:57]} 11. h6 {[%clk 0:02:50]}  g6 {[%clk 0:02:57]} 12. Bg5 {[%clk 0:02:50]}  Bxg5 {[%clk 0:02:57]} 13. Nxg5 {[%clk 0:02:51]}  Qe7 {[%clk 0:02:57]} 14. Qg4 {[%clk 0:02:48]}  Nfd7 {[%clk 0:02:56]} 15. Nd2 {[%clk 0:02:46]}  Nc6 {[%clk 0:02:56]} 16. Ndf3 {[%clk 0:02:43]}  O-O-O {[%clk 0:02:57]} 17. a3 {[%clk 0:02:31]}  Kb8 {[%clk 0:02:55]} 18. b4 {[%clk 0:02:30]}  c4 {[%clk 0:02:51]} 19. Bc2 {[%clk 0:02:30]}  Rde8 {[%clk 0:02:36]} 20. a4 {[%clk 0:02:28]}  Qf8 {[%clk 0:02:36]} 21. Qh4 {[%clk 0:02:27]}  Nd8 {[%clk 0:02:36]} 22. Nh2 {[%clk 0:02:23]}  a6 {[%clk 0:02:36]} 23. Ng4 {[%clk 0:02:23]}  Qe7 {[%clk 0:02:36]} 24. g3 {[%clk 0:02:20]}  f6 {[%clk 0:02:21]} 25. exf6 {[%clk 0:02:17]}  Nxf6 {[%clk 0:02:21]} 26. Ne5 {[%clk 0:02:07]}  Nd7 {[%clk 0:02:07]} 27. Nxd7+ {[%clk 0:01:31]}  Qxd7 {[%clk 0:02:06]} 28. Nf3 {[%clk 0:01:31]}  Nf7 {[%clk 0:01:56]} 29. Ne5 {[%clk 0:01:31]}  Nxe5 {[%clk 0:01:57]} 30. Rxe5 {[%clk 0:01:31]}  Qf7 {[%clk 0:01:57]} 31. Rae1 {[%clk 0:01:27]}  Rhf8 {[%clk 0:01:56]} 32. f4 {[%clk 0:01:26]}  Bc6 {[%clk 0:01:55]} 33. a5 {[%clk 0:01:23]}  bxa5 {[%clk 0:01:52]} 34. bxa5 {[%clk 0:01:24]}  Ka7 {[%clk 0:01:48]} 35. Qh3 {[%clk 0:01:06]}  Bd7 {[%clk 0:01:47]} 36. Bd1 {[%clk 0:01:02]}  Re7 {[%clk 0:01:22]} 37. Bf3 {[%clk 0:00:55]}  Rfe8 {[%clk 0:01:17]} 38. Bg4 {[%clk 0:00:44]}  Bc8 {[%clk 0:01:16]} 39. Qh4 {[%clk 0:00:42]}  Rb7 {[%clk 0:01:07]} 40. Qh3 {[%clk 0:00:38]}  Rbe7 {[%clk 0:00:44]} 41. Kg2 {[%clk 0:00:37]}  Qf6 {[%clk 0:00:44]} 42. R1e2 {[%clk 0:00:37]}  Qf7 {[%clk 0:00:44]} 43. Qh4 {[%clk 0:00:37]}  Rb7 {[%clk 0:00:41]} 44. Qg5 {[%clk 0:00:37]}  Qc7 {[%clk 0:00:31]} 45. Bxe6 {[%clk 0:00:32]}  Bxe6 {[%clk 0:00:30]} 46. Rxe6 {[%clk 0:00:33]}  Rxe6 {[%clk 0:00:31]} 47. Rxe6 {[%clk 0:00:33]}  Qxa5 {[%clk 0:00:32]} 48. Kh3 {[%clk 0:00:30]}  Rd7 {[%clk 0:00:15]} 49. Qf6 {[%clk 0:00:24]}  Qa1 {[%clk 0:00:10]} 50. Qe5 {[%clk 0:00:10]}  Qh1+ {[%clk 0:00:08]} 51. Kg4 {[%clk 0:00:10]}  Qd1+ {[%clk 0:00:08]} 52. Kg5 {[%clk 0:00:07]}  Qa4 {[%clk 0:00:02]} 53. Re7 {[%clk 0:00:05]}  Qc6 {[%clk 0:00:03]} 54. Rxd7+ {[%clk 0:00:05]}  Qxd7 {[%clk 0:00:04]} 55. Kf6 {[%clk 0:00:06]}  a5 {[%clk 0:00:04]} 56. g4 {[%clk 0:00:06]}  a4 {[%clk 0:00:04]} 57. f5 {[%clk 0:00:06]}  a3 {[%clk 0:00:05]} 58. fxg6 {[%clk 0:00:06]}  Qc6+ {[%clk 0:00:05]} 59. Qe6 {[%clk 0:00:05]}  Qxe6+ {[%clk 0:00:03]} 60. Kxe6 {[%clk 0:00:06]}  a2 {[%clk 0:00:04]} 61. gxh7 {[%clk 0:00:06]}  a1=Q {[%clk 0:00:05]} 62. h8=Q {[%clk 0:00:07]}  Qe1+ {[%clk 0:00:05]} 63. Kxd5 {[%clk 0:00:07]}  Qxc3 {[%clk 0:00:05]} 64. Qg7+ {[%clk 0:00:07]}  Kb6 {[%clk 0:00:06]} 65. h7 {[%clk 0:00:08]}  Qf3+ {[%clk 0:00:05]} 66. Kd6 {[%clk 0:00:09]}  Qc6+ {[%clk 0:00:06]} 67. Ke5 {[%clk 0:00:08]}  c3 {[%clk 0:00:04]} 68. h8=Q {[%clk 0:00:08]}  c2 {[%clk 0:00:05]} 69. Qb8+ {[%clk 0:00:08]}  Ka5 {[%clk 0:00:06]} 70. Qga7+ {[%clk 0:00:07]}  Qa6 {[%clk 0:00:07]} 71. Qbb6+ {[%clk 0:00:08]} 1-0


[Site "https://www.chess.com"]

[Event "Titled Tuesday Blitz February 15 Early 2022"]
[White "Musovic, Armin"]
[Black "Topalov, Aleksandar"]
[WhiteFideId "939935"]
[BlackFideId "925659"]
[WhiteElo "2250"]
[BlackElo "2098"]
[Result "1-0"]
[Round "07"]
[TimeControl "180+1"]
[Date "2022.02.15"]
[WhiteClock "0:02:54"]
[BlackClock "0:02:14"]

1. a3 {[%clk 0:03:00]}  Nf6 {[%clk 0:02:57]} 2. Nc3 {[%clk 0:03:01]}  g6 {[%clk 0:02:57]} 3. e4 {[%clk 0:03:01]}  d6 {[%clk 0:02:57]} 4. d4 {[%clk 0:03:01]}  Nbd7 {[%clk 0:02:54]} 5. Bg5 {[%clk 0:03:01]}  Bg7 {[%clk 0:02:52]} 6. f4 {[%clk 0:03:01]}  e5 {[%clk 0:02:41]} 7. dxe5 {[%clk 0:03:00]}  dxe5 {[%clk 0:02:41]} 8. fxe5 {[%clk 0:03:00]}  Nxe5 {[%clk 0:02:39]} 9. Qxd8+ {[%clk 0:03:01]}  Kxd8 {[%clk 0:02:39]} 10. Nd5 {[%clk 0:02:58]}  Nd7 {[%clk 0:02:14]} 11. O-O-O {[%clk 0:02:54]} 1-0


[Site "https://www.chess.com"]

[Event "Titled Tuesday Blitz February 15 Early 2022"]
[White "Namitbir Singh Walia"]
[Black "Howell, David W L"]
[WhiteFideId "35071068"]
[BlackFideId "410608"]
[WhiteElo "1479"]
[BlackElo "2559"]
[Result "0-1"]
[Round "07"]
[TimeControl "180+1"]
[Date "2022.02.15"]
[WhiteClock "0:01:07"]
[BlackClock "0:02:20"]

1. e4 {[%clk 0:03:00]}  e5 {[%clk 0:02:57]} 2. Nf3 {[%clk 0:02:59]}  Nf6 {[%clk 0:02:55]} 3. Nxe5 {[%clk 0:02:58]}  d6 {[%clk 0:02:55]} 4. Nf3 {[%clk 0:02:58]}  Nxe4 {[%clk 0:02:55]} 5. Nc3 {[%clk 0:02:57]}  Nf6 {[%clk 0:02:55]} 6. d4 {[%clk 0:02:56]}  Be7 {[%clk 0:02:55]} 7. d5 {[%clk 0:02:55]}  O-O {[%clk 0:02:54]} 8. Bd3 {[%clk 0:02:53]}  Re8 {[%clk 0:02:55]} 9. O-O {[%clk 0:02:52]}  Nbd7 {[%clk 0:02:56]} 10. Be3 {[%clk 0:02:46]}  Nc5 {[%clk 0:02:56]} 11. Bxc5 {[%clk 0:02:44]}  dxc5 {[%clk 0:02:57]} 12. h3 {[%clk 0:02:40]}  a6 {[%clk 0:02:53]} 13. a4 {[%clk 0:02:35]}  Bd6 {[%clk 0:02:52]} 14. Re1 {[%clk 0:02:32]}  Bd7 {[%clk 0:02:51]} 15. Qd2 {[%clk 0:02:30]}  h6 {[%clk 0:02:50]} 16. Ne4 {[%clk 0:02:09]}  Nxe4 {[%clk 0:02:47]} 17. Bxe4 {[%clk 0:02:03]}  Qf6 {[%clk 0:02:47]} 18. c4 {[%clk 0:01:59]}  Re7 {[%clk 0:02:43]} 19. Re2 {[%clk 0:01:44]}  Rae8 {[%clk 0:02:42]} 20. Rae1 {[%clk 0:01:43]}  Bxa4 {[%clk 0:02:42]} 21. Nh2 {[%clk 0:01:32]}  Bd7 {[%clk 0:02:27]} 22. Ng4 {[%clk 0:01:27]}  Qf4 {[%clk 0:02:26]} 23. Qxf4 {[%clk 0:01:25]}  Bxf4 {[%clk 0:02:27]} 24. g3 {[%clk 0:01:18]}  Bd6 {[%clk 0:02:25]} 25. Bd3 {[%clk 0:01:11]}  h5 {[%clk 0:02:20]} 26. Rxe7 {[%clk 0:01:09]}  Rxe7 {[%clk 0:02:19]} 27. Rxe7 {[%clk 0:01:08]}  Bxe7 {[%clk 0:02:20]} 28. Ne5 {[%clk 0:01:07]}  Bxh3 {[%clk 0:02:20]} 0-1


[Site "https://www.chess.com"]

[Event "Titled Tuesday Blitz February 15 Early 2022"]
[White "Narayanan.S.L"]
[Black "Maze, Sebastien"]
[WhiteFideId "5058422"]
[BlackFideId "613762"]
[WhiteElo "2494"]
[BlackElo "2462"]
[Result "1-0"]
[Round "07"]
[TimeControl "180+1"]
[Date "2022.02.15"]
[WhiteClock "0:00:58"]
[BlackClock "0:00:11"]

1. Nf3 {[%clk 0:03:00]}  Nf6 {[%clk 0:02:59]} 2. g3 {[%clk 0:03:01]}  g6 {[%clk 0:02:57]} 3. Bg2 {[%clk 0:03:01]}  Bg7 {[%clk 0:02:58]} 4. O-O {[%clk 0:03:02]}  O-O {[%clk 0:02:59]} 5. Re1 {[%clk 0:03:02]}  d5 {[%clk 0:02:57]} 6. d3 {[%clk 0:03:00]}  c5 {[%clk 0:02:55]} 7. Nbd2 {[%clk 0:03:01]}  Nc6 {[%clk 0:02:56]} 8. e4 {[%clk 0:03:01]}  e6 {[%clk 0:02:55]} 9. c3 {[%clk 0:02:53]}  b6 {[%clk 0:02:48]} 10. e5 {[%clk 0:02:46]}  Nd7 {[%clk 0:02:48]} 11. d4 {[%clk 0:02:47]}  Ba6 {[%clk 0:02:47]} 12. Nb3 {[%clk 0:02:46]}  cxd4 {[%clk 0:02:42]} 13. cxd4 {[%clk 0:02:46]}  Nb4 {[%clk 0:02:29]} 14. Re3 {[%clk 0:02:28]}  Rc8 {[%clk 0:02:25]} 15. Rc3 {[%clk 0:02:27]}  Bc4 {[%clk 0:02:18]} 16. h4 {[%clk 0:02:22]}  a5 {[%clk 0:02:15]} 17. Bg5 {[%clk 0:02:20]}  f6 {[%clk 0:02:12]} 18. exf6 {[%clk 0:02:20]}  Bxf6 {[%clk 0:02:12]} 19. a3 {[%clk 0:02:20]}  Nc6 {[%clk 0:01:58]} 20. Nbd2 {[%clk 0:02:11]}  Ba6 {[%clk 0:01:58]} 21. Rac1 {[%clk 0:02:08]}  Bb7 {[%clk 0:01:47]} 22. Qe2 {[%clk 0:02:03]}  Qe7 {[%clk 0:01:44]} 23. Bh3 {[%clk 0:02:03]}  Rfe8 {[%clk 0:01:17]} 24. Re1 {[%clk 0:01:08]}  Nf8 {[%clk 0:01:12]} 25. Re3 {[%clk 0:01:07]}  Bxg5 {[%clk 0:00:55]} 26. hxg5 {[%clk 0:01:07]}  Nd8 {[%clk 0:00:32]} 27. Nf1 {[%clk 0:01:02]}  Rc6 {[%clk 0:00:26]} 28. Ne5 {[%clk 0:01:00]}  Rc7 {[%clk 0:00:23]} 29. f4 {[%clk 0:01:00]}  Nf7 {[%clk 0:00:19]} 30. Nxf7 {[%clk 0:01:00]}  Qxf7 {[%clk 0:00:18]} 31. Nh2 {[%clk 0:01:01]}  Rc4 {[%clk 0:00:15]} 32. Ng4 {[%clk 0:01:00]}  Qg7 {[%clk 0:00:11]} 33. Nf6+ {[%clk 0:01:00]}  Kf7 {[%clk 0:00:11]} 34. Bxe6+ {[%clk 0:00:58]} 1-0


[Site "https://www.chess.com"]

[Event "Titled Tuesday Blitz February 15 Early 2022"]
[White "Nesterov, Arseniy"]
[Black "Terry, Renato"]
[WhiteFideId "24198455"]
[BlackFideId "3803457"]
[WhiteElo "2489"]
[BlackElo "2577"]
[Result "0-1"]
[Round "07"]
[TimeControl "180+1"]
[Date "2022.02.15"]
[WhiteClock "0:00:03"]
[BlackClock "0:00:10"]

1. d4 {[%clk 0:03:00]}  d5 {[%clk 0:03:00]} 2. c4 {[%clk 0:03:01]}  c6 {[%clk 0:03:00]} 3. Nc3 {[%clk 0:02:59]}  Nf6 {[%clk 0:02:59]} 4. e3 {[%clk 0:02:59]}  a6 {[%clk 0:02:59]} 5. Qc2 {[%clk 0:02:58]}  b5 {[%clk 0:02:54]} 6. b3 {[%clk 0:02:48]}  g6 {[%clk 0:02:52]} 7. Bd3 {[%clk 0:02:45]}  Bg7 {[%clk 0:02:51]} 8. Nf3 {[%clk 0:02:46]}  O-O {[%clk 0:02:51]} 9. O-O {[%clk 0:02:43]}  Nbd7 {[%clk 0:02:39]} 10. a4 {[%clk 0:02:38]}  dxc4 {[%clk 0:02:30]} 11. bxc4 {[%clk 0:02:37]}  b4 {[%clk 0:02:31]} 12. Nb1 {[%clk 0:02:26]}  a5 {[%clk 0:02:27]} 13. Nbd2 {[%clk 0:02:26]}  e5 {[%clk 0:02:26]} 14. Bb2 {[%clk 0:02:17]}  Re8 {[%clk 0:02:23]} 15. h3 {[%clk 0:02:05]}  exd4 {[%clk 0:02:08]} 16. exd4 {[%clk 0:02:04]}  Nf8 {[%clk 0:02:08]} 17. Nb3 {[%clk 0:01:55]}  Ne6 {[%clk 0:02:07]} 18. Rfe1 {[%clk 0:01:49]}  Nf4 {[%clk 0:01:43]} 19. Bf1 {[%clk 0:01:41]}  Bf5 {[%clk 0:01:43]} 20. Qd2 {[%clk 0:01:41]}  Bh6 {[%clk 0:01:43]} 21. Rxe8+ {[%clk 0:01:34]}  Qxe8 {[%clk 0:01:43]} 22. Qe1 {[%clk 0:01:04]}  Ne4 {[%clk 0:00:52]} 23. Bc1 {[%clk 0:00:45]}  g5 {[%clk 0:00:40]} 24. Bxf4 {[%clk 0:00:36]}  gxf4 {[%clk 0:00:41]} 25. Ne5 {[%clk 0:00:27]}  Nc3 {[%clk 0:00:38]} 26. Bd3 {[%clk 0:00:18]}  Bg6 {[%clk 0:00:24]} 27. Bxg6 {[%clk 0:00:12]}  hxg6 {[%clk 0:00:24]} 28. Nd3 {[%clk 0:00:11]}  Qd7 {[%clk 0:00:17]} 29. Qe5 {[%clk 0:00:09]}  f3 {[%clk 0:00:15]} 30. Ndc5 {[%clk 0:00:04]}  Qd8 {[%clk 0:00:12]} 31. Ne4 {[%clk 0:00:03]}  Bg7 {[%clk 0:00:10]} 0-1


[Site "https://www.chess.com"]

[Event "Titled Tuesday Blitz February 15 Early 2022"]
[White "Petrova, Irina"]
[Black "Rozhkov, Viacheslav"]
[WhiteFideId "14124122"]
[BlackFideId "4181484"]
[WhiteElo "1988"]
[BlackElo "2324"]
[Result "1-0"]
[Round "07"]
[TimeControl "180+1"]
[Date "2022.02.15"]
[WhiteClock "0:00:49"]
[BlackClock "0:00:35"]

1. e4 {[%clk 0:03:00]}  c5 {[%clk 0:02:59]} 2. Nf3 {[%clk 0:03:00]}  d6 {[%clk 0:02:59]} 3. Bb5+ {[%clk 0:03:00]}  Nd7 {[%clk 0:02:59]} 4. O-O {[%clk 0:02:59]}  a6 {[%clk 0:02:59]} 5. Bxd7+ {[%clk 0:02:58]}  Bxd7 {[%clk 0:02:58]} 6. d4 {[%clk 0:02:59]}  cxd4 {[%clk 0:02:58]} 7. Qxd4 {[%clk 0:03:00]}  e5 {[%clk 0:02:58]} 8. Qd3 {[%clk 0:02:59]}  Rc8 {[%clk 0:02:59]} 9. a4 {[%clk 0:02:57]}  Qc7 {[%clk 0:02:57]} 10. Nc3 {[%clk 0:02:57]}  h6 {[%clk 0:02:56]} 11. Be3 {[%clk 0:02:47]}  Nf6 {[%clk 0:02:56]} 12. Rfd1 {[%clk 0:02:44]}  Bc6 {[%clk 0:02:56]} 13. Nd2 {[%clk 0:02:43]}  Be7 {[%clk 0:02:55]} 14. Nf1 {[%clk 0:02:36]}  O-O {[%clk 0:02:53]} 15. a5 {[%clk 0:02:35]}  Bb5 {[%clk 0:02:29]} 16. Qd2 {[%clk 0:02:29]}  Bxf1 {[%clk 0:02:28]} 17. Rxf1 {[%clk 0:02:24]}  Rfd8 {[%clk 0:02:28]} 18. Bb6 {[%clk 0:02:23]}  Qc6 {[%clk 0:02:26]} 19. Bxd8 {[%clk 0:02:23]}  Rxd8 {[%clk 0:02:27]} 20. Nd5 {[%clk 0:02:15]}  Nxd5 {[%clk 0:02:22]} 21. Qxd5 {[%clk 0:02:16]}  Qxd5 {[%clk 0:02:17]} 22. exd5 {[%clk 0:02:17]}  f5 {[%clk 0:02:14]} 23. c4 {[%clk 0:02:14]}  Rc8 {[%clk 0:02:13]} 24. Rfc1 {[%clk 0:02:08]}  Kf7 {[%clk 0:02:09]} 25. b4 {[%clk 0:02:06]}  Rd8 {[%clk 0:02:09]} 26. Rd1 {[%clk 0:02:03]}  e4 {[%clk 0:02:09]} 27. Rac1 {[%clk 0:02:02]}  Bg5 {[%clk 0:02:08]} 28. Rc2 {[%clk 0:02:01]}  Kf6 {[%clk 0:01:49]} 29. c5 {[%clk 0:02:00]}  Ke5 {[%clk 0:01:49]} 30. c6 {[%clk 0:01:57]}  bxc6 {[%clk 0:01:47]} 31. Rxc6 {[%clk 0:01:55]}  Ra8 {[%clk 0:01:35]} 32. g3 {[%clk 0:01:53]}  f4 {[%clk 0:01:32]} 33. gxf4+ {[%clk 0:01:50]}  Bxf4 {[%clk 0:01:31]} 34. Rc7 {[%clk 0:01:26]}  g5 {[%clk 0:01:26]} 35. Re7+ {[%clk 0:01:23]}  Kf5 {[%clk 0:01:25]} 36. Re1 {[%clk 0:01:14]}  Be5 {[%clk 0:01:24]} 37. Rb7 {[%clk 0:01:09]}  h5 {[%clk 0:01:17]} 38. b5 {[%clk 0:01:07]}  axb5 {[%clk 0:01:17]} 39. Rxb5 {[%clk 0:01:08]}  Bd4 {[%clk 0:01:10]} 40. Kg2 {[%clk 0:01:07]}  Rc8 {[%clk 0:01:05]} 41. Re2 {[%clk 0:01:06]}  Ke5 {[%clk 0:01:03]} 42. a6 {[%clk 0:01:05]}  g4 {[%clk 0:00:56]} 43. Ra2 {[%clk 0:01:04]}  h4 {[%clk 0:00:53]} 44. a7 {[%clk 0:01:00]}  Rc1 {[%clk 0:00:35]} 45. a8=Q {[%clk 0:00:49]} 1-0


[Site "https://www.chess.com"]

[Event "Titled Tuesday Blitz February 15 Early 2022"]
[White "Piliczewski, Bogusz"]
[Black "Von Buelow, Georg"]
[WhiteFideId "1104144"]
[BlackFideId "4620658"]
[WhiteElo "1896"]
[BlackElo "2209"]
[Result "0-1"]
[Round "07"]
[TimeControl "180+1"]
[Date "2022.02.15"]
[WhiteClock "0:00:02"]
[BlackClock "0:00:57"]

1. d4 {[%clk 0:02:54]}  Nf6 {[%clk 0:02:44]} 2. Nf3 {[%clk 0:02:52]}  d5 {[%clk 0:02:42]} 3. Bf4 {[%clk 0:02:52]}  c5 {[%clk 0:02:41]} 4. c3 {[%clk 0:02:52]}  Nc6 {[%clk 0:02:42]} 5. e3 {[%clk 0:02:52]}  Qb6 {[%clk 0:02:40]} 6. Qb3 {[%clk 0:02:50]}  c4 {[%clk 0:02:40]} 7. Qxb6 {[%clk 0:02:49]}  axb6 {[%clk 0:02:40]} 8. a3 {[%clk 0:02:48]}  b5 {[%clk 0:02:40]} 9. Nbd2 {[%clk 0:02:48]}  b4 {[%clk 0:02:40]} 10. cxb4 {[%clk 0:02:48]}  Nxb4 {[%clk 0:02:39]} 11. Rc1 {[%clk 0:02:49]}  Nc6 {[%clk 0:02:39]} 12. h3 {[%clk 0:02:40]}  Bf5 {[%clk 0:02:38]} 13. g4 {[%clk 0:02:39]}  Bg6 {[%clk 0:02:38]} 14. Ne5 {[%clk 0:02:38]}  e6 {[%clk 0:02:27]} 15. Bg2 {[%clk 0:02:32]}  Nxe5 {[%clk 0:02:14]} 16. dxe5 {[%clk 0:02:18]}  Nd7 {[%clk 0:02:13]} 17. O-O {[%clk 0:02:13]}  Nc5 {[%clk 0:02:10]} 18. Rfe1 {[%clk 0:02:04]}  Nd3 {[%clk 0:02:10]} 19. Red1 {[%clk 0:01:55]}  Nxc1 {[%clk 0:02:08]} 20. Rxc1 {[%clk 0:01:55]}  b5 {[%clk 0:02:03]} 21. h4 {[%clk 0:01:31]}  h5 {[%clk 0:01:56]} 22. g5 {[%clk 0:01:27]}  Be7 {[%clk 0:01:56]} 23. Nf3 {[%clk 0:01:14]}  Kd7 {[%clk 0:01:51]} 24. Nd4 {[%clk 0:01:14]}  Rab8 {[%clk 0:01:46]} 25. Rc3 {[%clk 0:01:01]}  Rhc8 {[%clk 0:01:44]} 26. b4 {[%clk 0:00:57]}  Kc7 {[%clk 0:01:28]} 27. f3 {[%clk 0:00:46]}  Kb6 {[%clk 0:01:27]} 28. e4 {[%clk 0:00:45]}  dxe4 {[%clk 0:01:27]} 29. fxe4 {[%clk 0:00:44]}  Ka6 {[%clk 0:01:18]} 30. Kf2 {[%clk 0:00:42]}  Bd8 {[%clk 0:01:18]} 31. Be3 {[%clk 0:00:39]}  Bb6 {[%clk 0:01:18]} 32. Ke2 {[%clk 0:00:34]}  Rb7 {[%clk 0:01:17]} 33. Bf3 {[%clk 0:00:31]}  Rd7 {[%clk 0:01:16]} 34. Nc2 {[%clk 0:00:29]}  Bxe3 {[%clk 0:01:15]} 35. Nxe3 {[%clk 0:00:28]}  Rcd8 {[%clk 0:01:15]} 36. Nf1 {[%clk 0:00:27]}  Rd3 {[%clk 0:01:14]} 37. Rxd3 {[%clk 0:00:26]}  Rxd3 {[%clk 0:01:13]} 38. Ng3 {[%clk 0:00:23]}  Rxa3 {[%clk 0:01:12]} 39. Nxh5 {[%clk 0:00:22]}  Bxh5 {[%clk 0:01:07]} 40. Bxh5 {[%clk 0:00:21]}  g6 {[%clk 0:01:08]} 41. Bf3 {[%clk 0:00:21]}  Ra2+ {[%clk 0:01:09]} 42. Ke3 {[%clk 0:00:20]}  Rh2 {[%clk 0:01:09]} 43. h5 {[%clk 0:00:17]}  gxh5 {[%clk 0:01:09]} 44. Kf4 {[%clk 0:00:14]}  h4 {[%clk 0:01:07]} 45. Bh5 {[%clk 0:00:12]}  c3 {[%clk 0:01:04]} 46. Bxf7 {[%clk 0:00:10]}  Rf2+ {[%clk 0:01:04]} 47. Ke3 {[%clk 0:00:09]}  Rxf7 {[%clk 0:01:05]} 48. Kd3 {[%clk 0:00:08]}  h3 {[%clk 0:01:05]} 49. Kxc3 {[%clk 0:00:07]}  h2 {[%clk 0:01:05]} 50. g6 {[%clk 0:00:07]}  Rg7 {[%clk 0:01:05]} 51. Kd4 {[%clk 0:00:06]}  Kb6 {[%clk 0:01:04]} 52. Ke3 {[%clk 0:00:05]}  h1=Q {[%clk 0:01:03]} 53. Kf4 {[%clk 0:00:05]}  Rxg6 {[%clk 0:01:01]} 54. Ke3 {[%clk 0:00:03]}  Qg1+ {[%clk 0:00:59]} 55. Kf4 {[%clk 0:00:02]}  Qg3# {[%clk 0:00:57]} 0-1


[Site "https://www.chess.com"]